fUST/lending_fUST_20250604
["ID","MTS","AMOUNT","RATE_DAILY","PERIOD"]
[364220110,1749043851399,-510.02909599,0.00022039,2]
[364220112,1749043851410,-12500.0,0.00022047,2]
[364220114,1749043851419,-12500.0,0.00022056,2]
[364220116,1749043851432,-12500.0,0.00022065,2]
[364220118,1749043851442,-12500.0,0.00022073,2]
[364220120,1749043851452,-12500.0,0.00022082,2]
[364220122,1749043851463,-12500.0,0.00022091,2]
[364220123,1749043851476,-1500.0,0.00022161,2]
[364220126,1749043851486,-570.48775051,0.00022161,2]
[364220127,1749043851496,-500.0,0.00022161,2]
[364220129,1749043851506,-1294.34,0.00022191,2]
[364220132,1749043851517,-1679.19,0.00022191,2]
[364220134,1749043851527,-1051.97,0.00022191,2]
[364220136,1749043851536,-578.89,0.00022191,2]
[364220138,1749043851546,-602.97,0.00022191,2]
[364220140,1749043851557,-610.23,0.00022191,2]
[364220142,1749043851567,-2555.1,0.00022191,2]
[364220144,1749043851576,-2149.19,0.00022191,2]
[364220146,1749043851586,-2673.82,0.00022191,2]
[364220147,1749043851595,-507.61,0.00022191,2]
[364220149,1749043851605,-721.25,0.00022191,2]
[364220151,1749043851615,-4302.01,0.00022191,2]
[364220154,1749043851625,-2742.71,0.00022191,2]
[364220156,1749043851635,-1046.53,0.00022191,2]
[364220158,1749043851645,-1234.55,0.00022191,2]
[364220159,1749043851654,-686.23,0.00022191,2]
[364220161,1749043851663,-834.94,0.00022191,2]
[364220164,1749043851675,-655.42,0.00022191,2]
[364220166,1749043851686,-2049.91,0.00022191,2]
[364220167,1749043851695,-440.0,0.00022191,2]
[364220169,1749043851705,-771.64,0.00022191,2]
[364220171,1749043851714,-2410.0,0.000222,7]
[364220173,1749043851723,-949.12,0.000222,7]
[364220175,1749043851733,-600.0,0.00022203,2]
[364220177,1749043851744,-500.0,0.00022221,2]
[364220179,1749043851754,-4278.27575309,0.00022245,6]
[364220181,1749043851763,-1000.0,0.00022256,2]
[364220183,1749043851773,-1595.21769639,0.00022256,2]
[364220185,1749043851782,-506.65956259,0.00022256,2]
[364220187,1749043851791,-1500.0,0.0002226,2]
[364220189,1749043851803,-4000.0,0.00022272,4]
[364220192,1749043851813,-5000.0,0.00022278,2]
[364220193,1749043851825,-151.0,0.0002231,2]
[364220195,1749043851835,-151.0,0.0002231,7]
[364220197,1749043851845,-151.0,0.0002231,7]
[364220200,1749043851854,-158.261927,0.0002231,7]
[364220202,1749043851863,-158.261927,0.0002231,7]
[364220204,1749043851873,-212.352444,0.0002236,7]
[364220206,1749043851883,-212.352444,0.0002236,7]
[364220208,1749043851893,-151.0,0.00022465,2]
[364220209,1749043851903,-504.7392332,0.00022465,2]
[364220211,1749043851912,-1294.34,0.00022465,2]
[364220214,1749043851923,-1679.19,0.00022465,2]
[364220216,1749043851932,-1051.97,0.00022465,2]
[364220218,1749043851942,-578.89,0.00022465,2]
[364220220,1749043851951,-602.97,0.00022465,2]
[364220221,1749043851961,-610.23,0.00022465,2]
[364220223,1749043851971,-2555.1,0.00022465,2]
[364220225,1749043851981,-2149.19,0.00022465,2]
[364220228,1749043851991,-2673.82,0.00022465,2]
[364220229,1749043852001,-507.61,0.00022465,2]
[364220232,1749043852011,-721.25,0.00022465,2]
[364220234,1749043852021,-4302.01,0.00022465,2]
[364220236,1749043852031,-2742.71,0.00022465,2]
[364220238,1749043852041,-151.0,0.00022465,7]
[364220239,1749043852053,-1046.53,0.00022465,2]
[364220242,1749043852063,-1234.55,0.00022465,2]
[364220243,1749043852073,-686.23,0.00022465,2]
[364220245,1749043852083,-834.94,0.00022465,2]
[364220248,1749043852093,-655.42,0.00022465,2]
[364220249,1749043852103,-2049.91,0.00022465,2]
[364220252,1749043852113,-440.0,0.00022465,2]
[364220253,1749043852123,-771.64,0.00022465,2]
[364220255,1749043852133,-4278.27575309,0.00022486,7]
[364220257,1749043852143,-182.46,0.0002249,10]
[364220259,1749043852153,-152.05,0.0002249,10]
[364220261,1749043852163,-760.27,0.0002249,10]
[364220263,1749043852172,-84495.39680625,0.000225,7]
[364220265,1749043852182,-151.0,0.000225,7]
[364220268,1749043852192,-151.0,0.000225,7]
[364220269,1749043852202,-151.0,0.000225,7]
[364220271,1749043852212,-151.0,0.000225,7]
[364220273,1749043852222,-151.0,0.000225,7]
[364220275,1749043852231,-151.0,0.000225,7]
[364220277,1749043852241,-151.0,0.000225,7]
[364220279,1749043852251,-151.0,0.000225,7]
[364220281,1749043852262,-151.0,0.000225,7]
[364220283,1749043852271,-151.0,0.000225,7]
[364220285,1749043852280,-151.0,0.000225,7]
[364220287,1749043852290,-842.5625,0.000225,7]
[364220289,1749043852301,-1500.0,0.0002254,2]
[364220291,1749043852312,-274.0347953,0.00022548,2]
[364220293,1749043852322,-215.0738,0.00022551,2]
[364220305,1749043852431,-800.0,0.00022556,2]
[364220307,1749043852442,-229.071117,0.00022603,2]
[364220309,1749043852451,-62112.2580084,0.000227,2]
[364220311,1749043852462,-1500.0,0.00022709,2]
[364220313,1749043852472,-4278.27575309,0.00022728,7]
[364220315,1749043852483,-151.0,0.00022739,2]
[364220317,1749043852495,-151.0,0.00022739,7]
[364220320,1749043852506,-151.0,0.00022739,7]
[364220321,1749043852516,-158.261927,0.00022739,7]
[364220323,1749043852527,-158.261927,0.00022739,7]
[364220325,1749043852537,-1294.41399501,0.00022739,2]
[364220327,1749043852547,-1679.23507906,0.00022739,2]
[364220329,1749043852563,-1051.97,0.00022739,2]
[364220331,1749043852572,-578.91,0.00022739,2]
[364220333,1749043852582,-603.12549035,0.00022739,2]
[364220335,1749043852591,-610.35543342,0.00022739,2]
[364220337,1749043852601,-2555.1,0.00022739,2]
[364220339,1749043852611,-2149.34074427,0.00022739,2]
[364220341,1749043852621,-2673.8472,0.00022739,2]
[364220343,1749043852631,-507.84162718,0.00022739,2]
[364220345,1749043852641,-721.25,0.00022739,2]
[364220348,1749043852652,-4302.07054259,0.00022739,2]
[364220350,1749043852661,-2742.75,0.00022739,2]
[364220352,1749043852671,-1046.61840857,0.00022739,2]
[364220354,1749043852681,-1234.71658801,0.00022739,2]
[364220356,1749043852691,-835.10312986,0.00022739,2]
[364220358,1749043852700,-655.53706493,0.00022739,2]
[364220360,1749043852710,-2050.02528239,0.00022739,2]
[364220362,1749043852719,-686.33445303,0.00022739,2]
[364220364,1749043852728,-366.79246514,0.00022739,2]
[364220365,1749043852737,-771.84870204,0.00022739,2]
[364220367,1749043852746,-5000.0,0.00022826,2]
[364220369,1749043852755,-600.08085784,0.00022839,2]
[364220371,1749043852766,-600.0,0.00022847,2]
[364220374,1749043852775,-4278.27575309,0.00022969,8]
[364220375,1749043852785,-202.39606943,0.00022985,2]
[364220378,1749043852795,-300.73025642,0.00023,4]
[364220379,1749043852807,-229.45591648,0.00023,3]
[364220382,1749043852818,-1052.20845091,0.00023013,2]
[364220384,1749043852829,-2555.3073,0.00023013,2]
[364220386,1749043852839,-721.32,0.00023013,2]
[364220388,1749043852850,-160.0,0.0002303,3]
[364220390,1749043852860,-600.0,0.00023085,2]
[364220392,1749043852869,-500.0,0.00023088,2]
[364220394,1749043852878,-212.352444,0.000231,7]
[364220396,1749043852888,-212.352444,0.000231,7]
[364220398,1749043852898,-53214.35,0.000231,2]
[364220400,1749043852907,-5000.0,0.00023125,2]
[364220402,1749043852917,-4439.65,0.00023146,9]
[364220404,1749043852926,-19186.22,0.000232,9]
[364220406,1749043852936,-4278.27575309,0.0002321,8]
[364220408,1749043852946,-714.7715287,0.00023233,2]
[364220409,1749043852955,-1007.566783,0.00023317,3]
[364220411,1749043852965,-600.0,0.00023323,2]
[364220413,1749043852974,-800.0,0.00023341,2]
[364220415,1749043852984,-151.0,0.00023341,7]
[364220418,1749043852993,-151.0,0.00023341,7]
[364220419,1749043853002,-1500.0,0.00023356,2]
[364220422,1749043853012,-296.157679,0.00023362,2]
[364220424,1749043853022,-5000.0,0.00023374,2]
[364220426,1749043853031,-842.5625,0.000234,3]
[364220427,1749043853040,-160.0,0.000234,3]
[364220429,1749043853050,-160.0,0.000234,3]
[364220432,1749043853062,-160.0,0.000234,3]
[364220433,1749043853072,-3930.19040911,0.000234,3]
[364220435,1749043853082,-1152.0,0.00023446,2]
[364220438,1749043853092,-4278.27575309,0.00023452,9]
[364220440,1749043853102,-160.87273684,0.000235,7]
[364220441,1749043853111,-1002.11898638,0.000235,2]
[364220443,1749043853121,-6690.60550376,0.000235,2]
[364220446,1749043853132,-173.62340052,0.00023507,2]
[364220448,1749043853141,-178.58406912,0.00023507,2]
[364220450,1749043853151,-200.0,0.0002356,8]
[364220451,1749043853161,-600.0,0.00023561,2]
[364220454,1749043853171,-2410.0,0.000236,7]
[364220456,1749043853181,-949.12,0.000236,7]
[364220457,1749043853191,-1271.61743733,0.000236,2]
[364220460,1749043853201,-1271.61743725,0.00023653,2]
[364220461,1749043853211,-4278.27575309,0.00023693,9]
[364220464,1749043853221,-98925.78927547,0.000237,7]
[364220476,1749043853335,-620.59706305,0.00017533,2]
[364220478,1749043853345,-1196.21763495,0.000237,7]
[364220495,1749043853658,-440.0,0.00016438,2]
[364220497,1749043853668,-70.20018879,0.00016438,2]
[364220516,1749043853847,-426.64712748,0.00016438,2]
[364220518,1749043853858,-412.00885652,0.00016438,2]
[364220521,1749043853868,-440.0,0.00016438,2]
[364220523,1749043853878,-410.0,0.00016438,2]
[364220524,1749043853888,-440.0,0.00016438,2]
[364220526,1749043853899,-440.0,0.00016712,2]
[364220528,1749043853909,-1333.43,0.00016712,2]
[364220530,1749043853919,-440.0,0.00016712,2]
[364220532,1749043853928,-1333.43,0.00016986,2]
[364220534,1749043853937,-392.12491051,0.00016986,2]
[364220536,1749043853947,-451.99,0.00016986,2]
[364220538,1749043853957,-1333.43,0.0001726,2]
[364220540,1749043853967,-620.59706305,0.00017533,2]
[364220542,1749043853976,-620.59706305,0.00017533,2]
[364220544,1749043853986,-620.59706305,0.00017533,2]
[364220546,1749043853995,-620.59706305,0.00017533,2]
[364220548,1749043854005,-620.59706305,0.00017533,2]
[364220550,1749043854014,-620.59706305,0.00017533,2]
[364220552,1749043854024,-620.59706305,0.00017533,2]
[364220554,1749043854034,-620.59706305,0.00017533,2]
[364220556,1749043854044,-620.59706305,0.00017533,2]
[364220558,1749043854054,-620.59706305,0.00017533,2]
[364220560,1749043854063,-620.59706305,0.00017533,2]
[364220562,1749043854073,-620.59706305,0.00017533,2]
[364220564,1749043854082,-620.59706305,0.00017533,2]
[364220566,1749043854091,-620.59706305,0.00017533,2]
[364220568,1749043854101,-620.59706305,0.00017533,2]
[364220570,1749043854111,-620.59706305,0.00017533,2]
[364220572,1749043854121,-620.59706305,0.00017533,2]
[364220574,1749043854131,-620.59706305,0.00017533,2]
[364220576,1749043854140,-620.59706305,0.00017533,2]
[364220578,1749043854149,-620.59706305,0.00017533,2]
[364220580,1749043854159,-620.59706305,0.00017533,2]
[364220582,1749043854169,-1333.43,0.00017534,2]
[364220584,1749043854178,-1333.43,0.00017808,2]
[364220586,1749043854187,-1333.43,0.00018082,2]
[364220587,1749043854197,-1333.43,0.00018356,2]
[364220589,1749043854206,-1333.43,0.0001863,2]
[364220591,1749043854216,-1333.43,0.00018904,2]
[364220593,1749043854226,-1333.43,0.00019178,2]
[364220595,1749043854235,-1333.43,0.00019452,2]
[364220597,1749043854245,-1333.43,0.00019726,2]
[364220599,1749043854255,-1333.43,0.0002,2]
[364220601,1749043854264,-1333.43,0.00020273,2]
[364220603,1749043854274,-1333.43,0.00020547,2]
[364220605,1749043854284,-1333.43,0.00020821,2]
[364220607,1749043854294,-1333.43,0.00021095,2]
[364220610,1749043854303,-1333.43,0.00021369,2]
[364220612,1749043854314,-2082.9,0.00021643,2]
[364220614,1749043854323,-1333.43,0.00021643,2]
[364220615,1749043854332,-974.114,0.00021791,2]
[364220617,1749043854341,-2082.9,0.00021917,2]
[364220619,1749043854350,-2082.9,0.00022191,2]
[364220621,1749043854360,-1000.0,0.000224,2]
[364220623,1749043854369,-2082.9,0.00022465,2]
[364220625,1749043854379,-2082.91849854,0.00022739,2]
[364220627,1749043854388,-1000.0,0.000229,2]
[364220629,1749043854398,-1000.0,0.000234,2]
[364220631,1749043854408,-25746.03851036,0.000237,7]
[364220633,1749043854421,-11320.86966708,0.000237,7]
[364220644,1749043854531,-440.0,0.00016438,2]
[364220646,1749043854540,-247.01886849,0.00016712,2]
[364220648,1749043854550,-1002.569127,0.000219,2]
[364220650,1749043854561,-1333.43,0.00021917,2]
[364220652,1749043854571,-1333.43,0.00022191,2]
[364220664,1749043854680,-1333.43,0.00022465,2]
[364220666,1749043854691,-1333.58149257,0.00022739,2]
[364220668,1749043854700,-16814.99491214,0.000237,7]
[364220670,1749043854709,-2000.0,0.000237,2]
[364220672,1749043854718,-151.0,0.000237,7]
[364220674,1749043854727,-151.0,0.000237,7]
[364220676,1749043854737,-151.0,0.000237,7]
[364220678,1749043854747,-151.0,0.000237,7]
[364220680,1749043854756,-151.0,0.000237,7]
[364220682,1749043854766,-151.0,0.000237,7]
[364220684,1749043854776,-151.0,0.000237,7]
[364220686,1749043854785,-287.662254,0.000237,7]
[364220688,1749043854795,-151.0,0.000237,7]
[364220690,1749043854804,-270.630117,0.000237,7]
[364220692,1749043854813,-16624.70351098,0.000237,7]
[364220694,1749043854825,-18722.1437302,0.000237,7]
[364220696,1749043854835,-151.0,0.000237,7]
[364220698,1749043854845,-151.0,0.000237,7]
[364220700,1749043854855,-151.0,0.000237,7]
[364220702,1749043854864,-151.0,0.000237,7]
[364220704,1749043854874,-151.0,0.000237,7]
[364220706,1749043854884,-1271.61743725,0.00023706,2]
[364220708,1749043854894,-173.62340052,0.00023753,2]
[364220711,1749043854905,-1271.61743725,0.00023759,2]
[364220713,1749043854915,-6032.53109923,0.00023794,2]
[364223446,1749043920988,1479.9627175,0.00025,120]
[364223447,1749043951584,888.0,0.00025,30]
[364223449,1749043966355,176.674489,0.00023716,30]
[364223452,1749044378025,175045.19,0.000155,2]
[364223455,1749044457769,63435.8027753,0.00015507,2]
[364223459,1749044619537,296.157679,0.00015445,2]
[364223462,1749044730166,-177.38913363,0.00015568,2]
[364223463,1749044733773,-155.15591869,0.00015568,2]
[364223464,1749044735827,-196.68243519,0.00015568,2]
[364223466,1749044741969,-39.43632019,0.00015568,2]
[364223467,1749044742101,156.68802334,0.00013699,2]
[364223468,1749044742125,11.46319566,0.00013699,2]
[364223700,1749044852878,273.0,0.00024189,120]
[364223702,1749044876797,725.351831,0.00015437,2]
[364223739,1749045037535,-161.04007653,0.00015945,2]
[364223753,1749045038050,-203.98409694,0.00015945,2]
[364223754,1749045038060,-205.22215091,0.00016238,2]
[364223755,1749045038069,-914.39995328,0.00016338,2]
[364223756,1749045038079,-160.0,0.00016436,2]
[364223757,1749045038089,-300.0,0.00016437,2]
[364223758,1749045038099,-300.0,0.00016437,2]
[364223759,1749045038109,-1200.0,0.00016437,2]
[364223760,1749045038119,-440.0,0.00016438,2]
[364223761,1749045038128,-370.0,0.00016438,2]
[364223762,1749045038138,-440.0,0.00016438,2]
[364223763,1749045038147,-440.0,0.00016438,2]
[364223764,1749045038157,-440.0,0.00016438,2]
[364223765,1749045038167,-550.0,0.00016438,2]
[364223766,1749045038177,-401.54003609,0.00016438,2]
[364223767,1749045038187,-192.25222457,0.00016438,2]
[364223768,1749045038197,-440.0,0.00016438,2]
[364223769,1749045038207,-440.0,0.00016438,2]
[364223770,1749045038217,-440.0,0.00016438,2]
[364223771,1749045038226,-222.62936294,0.00016438,2]
[364223772,1749045038236,-385.43449058,0.00016438,2]
[364223773,1749045038245,-353.32409051,0.00016438,2]
[364223774,1749045038255,-430.0,0.00016438,2]
[364223776,1749045038265,-430.0,0.00016438,2]
[364223778,1749045038275,-440.0,0.00016438,2]
[364223779,1749045038284,-430.0,0.00016438,2]
[364223781,1749045038296,-430.0,0.00016438,2]
[364223783,1749045038306,-403.55314877,0.00016438,2]
[364223785,1749045038315,-430.0,0.00016438,2]
[364223786,1749045038324,-430.0,0.00016438,2]
[364223787,1749045038334,-430.0,0.00016438,2]
[364223788,1749045038343,-430.0,0.00016438,2]
[364223789,1749045038352,-430.0,0.00016438,2]
[364223790,1749045038362,-334.40590533,0.00016438,2]
[364223791,1749045038371,-430.0,0.00016438,2]
[364223792,1749045038381,-430.0,0.00016438,2]
[364223793,1749045038391,-430.0,0.00016438,2]
[364223794,1749045038400,-525.78520218,0.00016438,2]
[364223795,1749045038410,-430.0,0.00016438,2]
[364223796,1749045038419,-440.0,0.00016438,2]
[364223797,1749045038429,-430.0,0.00016438,2]
[364223799,1749045038439,-430.0,0.00016438,2]
[364223800,1749045038448,-440.0,0.00016438,2]
[364223801,1749045038457,-440.0,0.00016438,2]
[364223802,1749045038466,-430.0,0.00016438,2]
[364223803,1749045038476,-439.74374302,0.00016438,2]
[364223804,1749045038486,-414.11252389,0.00016438,2]
[364223805,1749045038496,-430.0,0.00016438,2]
[364223807,1749045038505,-440.0,0.00016438,2]
[364223809,1749045038515,-132.39708013,0.00016438,2]
[364223812,1749045038534,-307.60291987,0.00016438,2]
[364223813,1749045038547,-430.0,0.00016438,2]
[364223814,1749045038556,-440.0,0.00016438,2]
[364223815,1749045038566,-430.0,0.00016438,2]
[364223816,1749045038575,-310.0,0.00016438,2]
[364223817,1749045038585,-410.0,0.00016438,2]
[364223818,1749045038595,-440.0,0.00016438,2]
[364223819,1749045038605,-475.50069188,0.00016438,2]
[364223820,1749045038614,-430.0,0.00016438,2]
[364223821,1749045038623,-430.0,0.00016438,2]
[364223822,1749045038632,-450.0,0.00016438,2]
[364223823,1749045038642,-430.0,0.00016438,2]
[364223824,1749045038651,-440.0,0.00016438,2]
[364223825,1749045038661,-430.0,0.00016438,2]
[364223826,1749045038670,-473.69482944,0.00016438,2]
[364223827,1749045038679,-309.41176861,0.00016438,2]
[364223828,1749045038688,-378.29108148,0.00016438,2]
[364223829,1749045038697,-450.0,0.00016438,2]
[364223830,1749045038706,-440.0,0.00016438,2]
[364223831,1749045038715,-440.0,0.00016438,2]
[364223832,1749045038724,-420.0,0.00016438,2]
[364223833,1749045038732,-450.0,0.00016438,2]
[364223834,1749045038741,-412.36980136,0.00016438,2]
[364223835,1749045038750,-440.0,0.00016438,2]
[364223836,1749045038758,-440.0,0.00016438,2]
[364223837,1749045038769,-430.0,0.00016438,2]
[364223838,1749045038779,-376.98673943,0.00016438,2]
[364223839,1749045038789,-430.0,0.00016438,2]
[364223840,1749045038799,-450.97233275,0.00016438,2]
[364223841,1749045038808,-500.0,0.00016438,2]
[364223842,1749045038817,-440.0,0.00016438,2]
[364223843,1749045038828,-440.0,0.00016438,2]
[364223844,1749045038839,-440.0,0.00016438,2]
[364223845,1749045038848,-450.0,0.00016438,2]
[364223846,1749045038858,-440.0,0.00016438,2]
[364223847,1749045038867,-430.0,0.00016438,2]
[364223848,1749045038878,-440.0,0.00016438,2]
[364223849,1749045038888,-440.0,0.00016438,2]
[364223850,1749045038897,-521.43,0.00016438,2]
[364223851,1749045038909,-440.0,0.00016438,2]
[364223852,1749045038918,-440.0,0.00016438,2]
[364223853,1749045038927,-440.0,0.00016438,2]
[364223854,1749045038936,-440.0,0.00016438,2]
[364223856,1749045038946,-440.0,0.00016438,2]
[364223858,1749045038955,-440.0,0.00016438,2]
[364223860,1749045038965,-440.0,0.00016438,2]
[364223861,1749045038974,-440.0,0.00016438,2]
[364223862,1749045038984,-440.0,0.00016438,2]
[364223863,1749045038993,-440.0,0.00016438,2]
[364223864,1749045039003,-440.0,0.00016438,2]
[364223865,1749045039012,-280.0,0.00016438,2]
[364223866,1749045039022,-440.0,0.00016438,2]
[364223867,1749045039031,-393.66,0.00016438,2]
[364223868,1749045039043,-588.0,0.00016438,2]
[364223869,1749045039052,-430.0,0.00016438,2]
[364223870,1749045039062,-430.0,0.00016438,2]
[364223871,1749045039071,-440.0,0.00016438,2]
[364223872,1749045039081,-440.0,0.00016438,2]
[364223873,1749045039091,-440.0,0.00016438,2]
[364223874,1749045039102,-434.9661582,0.00016438,2]
[364223875,1749045039111,-440.0,0.00016438,2]
[364223876,1749045039121,-450.0,0.00016438,2]
[364223877,1749045039130,-500.0,0.00016438,2]
[364223878,1749045039140,-500.0,0.00016438,2]
[364223879,1749045039151,-500.0,0.00016438,2]
[364223880,1749045039160,-440.0,0.00016438,2]
[364223881,1749045039170,-430.0,0.00016438,2]
[364223882,1749045039180,-440.0,0.00016438,2]
[364223883,1749045039189,-440.0,0.00016438,2]
[364223884,1749045039198,-440.0,0.00016438,2]
[364223885,1749045039208,-440.0,0.00016438,2]
[364223886,1749045039217,-440.0,0.00016438,2]
[364223887,1749045039227,-440.0,0.00016438,2]
[364223888,1749045039237,-430.0,0.00016438,2]
[364223889,1749045039247,-440.0,0.00016438,2]
[364223890,1749045039256,-440.0,0.00016438,2]
[364223891,1749045039266,-440.0,0.00016438,2]
[364223892,1749045039275,-292.34601701,0.00016438,2]
[364223893,1749045039285,-440.0,0.00016438,2]
[364223894,1749045039298,-234.4739206,0.00016438,2]
[364223895,1749045039307,-440.0,0.00016438,2]
[364223896,1749045039317,-440.0,0.00016438,2]
[364223897,1749045039326,-430.0,0.00016438,2]
[364223898,1749045039336,-440.0,0.00016438,2]
[364223899,1749045039346,-440.0,0.00016438,2]
[364223900,1749045039356,-440.0,0.00016438,2]
[364223901,1749045039366,-430.0,0.00016438,2]
[364223902,1749045039377,-430.0,0.00016438,2]
[364223903,1749045039386,-430.0,0.00016438,2]
[364223904,1749045039396,-440.0,0.00016438,2]
[364223905,1749045039406,-430.0,0.00016438,2]
[364223906,1749045039416,-430.0,0.00016438,2]
[364223907,1749045039425,-440.0,0.00016438,2]
[364223908,1749045039435,-440.0,0.00016438,2]
[364223909,1749045039444,-179.84754107,0.00016438,2]
[364223910,1749045039453,-440.0,0.00016438,2]
[364223911,1749045039463,-293.36145177,0.00016438,2]
[364223912,1749045039473,-430.0,0.00016438,2]
[364223913,1749045039483,-440.0,0.00016438,2]
[364223914,1749045039492,-430.2739647,0.00016438,2]
[364223915,1749045039503,-440.0,0.00016438,2]
[364223916,1749045039512,-444.12357598,0.00016438,2]
[364223917,1749045039522,-440.0,0.00016438,2]
[364223919,1749045039531,-440.0,0.00016438,2]
[364223921,1749045039544,-291.74770479,0.00016438,2]
[364223923,1749045039553,-440.0,0.00016438,2]
[364223925,1749045039562,-152.5351697,0.00016438,2]
[364223927,1749045039571,-159.41906259,0.00016438,2]
[364223929,1749045039580,-440.0,0.00016438,2]
[364223931,1749045039590,-151.0,0.00016438,2]
[364223933,1749045039599,-440.0,0.00016438,2]
[364223935,1749045039609,-246.68662982,0.00016438,2]
[364223936,1749045039618,-500.0,0.00016438,2]
[364223938,1749045039627,-440.0,0.00016438,2]
[364223941,1749045039638,-430.0,0.00016438,2]
[364223943,1749045039647,-151.49464071,0.00016438,2]
[364223945,1749045039657,-151.0,0.00016438,2]
[364223947,1749045039667,-440.0,0.00016438,2]
[364223949,1749045039676,-430.0,0.00016438,2]
[364223950,1749045039686,-440.0,0.00016438,2]
[364223951,1749045039695,-430.0,0.00016438,2]
[364223953,1749045039705,-440.0,0.00016438,2]
[364223955,1749045039714,-440.0,0.00016438,2]
[364223957,1749045039724,-490.0,0.00016438,2]
[364223959,1749045039734,-430.0,0.00016438,2]
[364223961,1749045039743,-440.0,0.00016438,2]
[364223963,1749045039752,-440.0,0.00016438,2]
[364223965,1749045039762,-188.36077631,0.00016438,2]
[364223967,1749045039772,-440.0,0.00016438,2]
[364223969,1749045039782,-440.0,0.00016438,2]
[364223970,1749045039792,-430.0,0.00016438,2]
[364223971,1749045039802,-440.0,0.00016438,2]
[364223972,1749045039812,-430.0,0.00016438,2]
[364223973,1749045039822,-430.0,0.00016438,2]
[364223974,1749045039832,-292.15703517,0.00016438,2]
[364223975,1749045039841,-440.0,0.00016438,2]
[364223976,1749045039850,-436.56678842,0.00016438,2]
[364223977,1749045039859,-430.0,0.00016438,2]
[364223978,1749045039869,-430.0,0.00016438,2]
[364223979,1749045039879,-430.0,0.00016438,2]
[364223981,1749045039888,-400.0,0.00016438,2]
[364223982,1749045039898,-440.0,0.00016438,2]
[364223984,1749045039909,-440.0,0.00016438,2]
[364223986,1749045039918,-440.0,0.00016438,2]
[364223988,1749045039928,-430.0,0.00016438,2]
[364223990,1749045039938,-440.0,0.00016438,2]
[364223992,1749045039947,-386.95839099,0.00016438,2]
[364223994,1749045039956,-440.0,0.00016438,2]
[364223996,1749045039965,-229.03047804,0.00016438,2]
[364223998,1749045039974,-440.0,0.00016438,2]
[364224000,1749045039983,-440.0,0.00016438,2]
[364224002,1749045039993,-440.0,0.00016438,2]
[364224004,1749045040003,-440.0,0.00016438,2]
[364224006,1749045040012,-430.0,0.00016438,2]
[364224008,1749045040024,-430.0,0.00016438,2]
[364224010,1749045040034,-854.47,0.00016438,2]
[364224012,1749045040046,-430.0,0.00016438,2]
[364224014,1749045040055,-430.0,0.00016438,2]
[364224016,1749045040065,-506.52,0.00016438,2]
[364224018,1749045040074,-540.08795904,0.00016438,2]
[364224020,1749045040084,-430.0,0.00016438,2]
[364224022,1749045040093,-451.26202899,0.00016438,2]
[364224024,1749045040103,-440.0,0.00016438,2]
[364224026,1749045040112,-454.44,0.00016438,2]
[364224028,1749045040121,-430.0,0.00016438,2]
[364224030,1749045040130,-151.0,0.00016438,2]
[364224031,1749045040140,-151.0,0.00016438,2]
[364224032,1749045040149,-440.0,0.00016438,2]
[364224033,1749045040160,-430.0,0.00016438,2]